Cogmind - Beta 13 @@@ ROGUE MODE // 2024.03.17 @ 22:01:06 Player: Baxter Result: Destroyed by D-53 Grenadier with Mini Grenade Launcher Performance ------------- Evolutions (0) 0 Regions Visited (2) 400 Robots Destroyed (32) 160 Value Destroyed (471) 471 Prototype IDs (0) 0 Alien Tech Used (0) 0 Bonus (39) 39 TOTAL SCORE: 1070 Bonus ------- Follower Combat Kills 39 Cogmind --------- Core Integrity 0/250 Matter 245/300 Energy 250/250 System Corruption 0% Temperature Cool (0) Movement Rolling (115) Ox1 Location -10/Mines Parts ------- > --- POWER (1) -------- Ion Engine > --- PROPULSION (2) --- Compact Wheel > --- UTILITY (2) ------ Large Storage Unit Seismic Detector > --- WEAPON (2) ------- Grenade Launcher Hammer > --- INVENTORY (15) --- Ion Engine Light Nuclear Core Aluminum Leg Aluminum Leg Compact Wheel Medium Matter Pod (100) Sensor Array Terrain Scanner Improved Terrain Scanner Light Armor Plating Tractor Beam Assault Rifle Assault Rifle Assault Rifle Light Assault Rifle Peak State ------------ > --- POWER ------------ Ion Engine > --- PROPULSION ------- Aluminum Leg Aluminum Leg > --- UTILITY ---------- Small Storage Unit Seismic Detector > --- WEAPON ----------- Assault Rifle Light Assault Rifle > --- INVENTORY -------- Ion Engine Light Treads Light Treads Wheel Wheel Medium Matter Pod Improved Terrain Scanner Light Assault Rifle [Rating: 8] Favorites ----------- Power Ion Engine Engine Ion Engine Propulsion Aluminum Leg Leg Aluminum Leg Wheel Compact Wheel Utility Large Storage Unit Device Seismic Detector Storage Large Storage Unit Protection Light Armor Plating Weapon Assault Rifle Ballistic Gun Assault Rifle Launcher Grenade Launcher Impact Weapon Hammer Build | -11 -10 -10 ------- Run | Yrd Mat Min Slots Evolved . | . . . Power . | . . . Propulsion . | . . . Utility . | . . . Weapon . | . . . Parts Attached 28 | 7 16 5 Power 4 | 1 3 . Engine 4 | 1 3 . Core . | . . . Reactor . | . . . Propulsion 7 | 2 4 1 Treads . | . . . Leg 5 | 2 3 . Wheel 2 | . 1 1 Hover . | . . . Flight . | . . . Utility 8 | 2 5 1 Device 3 | 1 1 1 Storage 4 | 1 3 . Processor . | . . . Hackware . | . . . Protection 1 | . 1 . Artifact . | . . . Weapon 9 | 2 4 3 Energy Gun . | . . . Energy Cannon . | . . . Ballistic Gun 6 | 2 3 1 Ballistic Cannon . | . . . Launcher 1 | . . 1 Special Weapon . | . . . Impact Weapon 2 | . 1 1 Slashing Weapon . | . . . Piercing Weapon . | . . . Special Melee Weapon . | . . . Unidentified Prototypes . | . . . Parts Lost 1 | . . 1 Power . | . . . Propulsion 1 | . . 1 Utility . | . . . Weapon . | . . . Highest Loss Streak 1 | . . 1 To Critical Strikes . | . . . Average Slot Usage (%) 97 | . 94 100 Engine 14 | . 14 14 Leg 19 | . 23 14 Wheel 8 | . 4 14 Device 3 | . 2 5 Storage 15 | . 16 14 Protection 8 | . 9 8 Ballistic Gun 17 | . 18 15 Impact Weapon 7 | . 4 12 Naked Turns . | . . . Heaviest Build 32 | 14 32 32 Greatest Support 20 | 20 20 16 Greatest Overweight (x) 4 | 4 3 3 Average Overweight (x) . | . . 1 Largest Inventory Capacity 15 | 8 15 15 Average Capacity 12 | 7 10 15 Most Carried 15 | 7 14 15 Average Carried 11 | 5 9 14 Final Capacity 15 | 8 15 15 Final Carried 15 | 7 14 15 Class Distribution -------------------- 83% | Mutant 16% | Scavenger-Mutant Dominant Class ---------------- Mutant | -10/Materials Mutant | -10/Mines Resources | -11 -10 -10 ----------- Run | Yrd Mat Min Matter Collected 882 | 210 518 154 Remotely . | . . . Salvage Created 854 | 99 493 262 Parts 63 | 13 37 13 Haulers Intercepted 2 | . 2 . Recyclers Shooed . | . . . Parts Field Recycled . | . . . Retrieved Matter . | . . . Parts Self-Destructed . | . . . Prevented . | . . . Kills | -11 -10 -10 ------- Run | Yrd Mat Min Combat Hostiles Destroyed 19 | . 14 5 Melee 3 | . 3 . Guns 16 | . 11 5 Classes Destroyed 8 | 2 5 1 Worker 3 | . 2 1 Builder 2 | . . 2 Tunneler 3 | 2 . 1 Hauler 2 | . 2 . Recycler 2 | 1 . 1 Operator 1 | . 1 . Swarmer 11 | . 8 3 Grunt 8 | . 6 2 Best Kill Streak 7 | 3 5 7 Combat Bots Only 5 | . 5 5 Max Kills in Single Turn 2 | 1 2 1 Gunslinging 1 | . 1 . Exploded . | . . . Melee 1 | . 1 . Uniques/NPCs Destroyed . | . . . Combat | -11 -10 -10 -------- Run | Yrd Mat Min Hostile Shots Fired 86 | . 53 33 Missed 18 | . 15 3 Damage Taken 951 | . 393 558 Core 256 | . 59 197 Absorbed by Shields . | . . . Core Remaining (%) 100 | 100 . . Volleys Fired 120 | 8 88 24 Largest 2 | 2 2 2 Hottest 40 | 40 40 40 Shots Fired 174 | 16 115 43 Gun 169 | 16 115 38 Cannon . | . . . Launcher 5 | . . 5 Special . | . . . Kinetic 169 | 16 115 38 Thermal . | . . . Explosive 5 | . . 5 Electromagnetic . | . . . Robot Hit Streak 14 | 4 7 14 Robot Miss Streak 6 | 1 6 2 Penetration Max . | . . . Secondary Targets 2 | . 1 1 Max Gunslinging Chain 1 | . 1 1 Shots Hit Robots 115 | 9 70 36 Core Hits 46 | 4 25 17 Critical Kills 1 | . 1 . Critical Parts Destroyed 4 | . 1 3 Critical Strikes 5 | . 2 3 Smash 5 | . 2 3 Melee Attacks 12 | . 8 4 Impact 12 | . 8 4 Slashing . | . . . Piercing . | . . . Sneak Attacks 5 | . 3 2 Combat Hostiles . | . . . Follow-up Attacks . | . . . Damage Inflicted 1486 | 97 864 525 Guns 1036 | 97 586 353 Cannons . | . . . Explosions 41 | . . 41 Melee 409 | . 278 131 Ramming . | . . . Kinetic 1036 | 97 586 353 Thermal . | . . . Explosive 41 | . . 41 Electromagnetic . | . . . Impact 409 | . 278 131 Slashing . | . . . Piercing . | . . . Highest Corruption . | . . . Average Corruption . | . . . Corruption Purged . | . . . Corruption Blocked . | . . . Overload Shots . | . . . Overflow Damage 218 | . 87 131 Projectiles . | . . . Explosions . | . . . Melee 218 | . 87 131 Knockbacks 1 | . 1 . Impact 1 | . 1 . Kinetic . | . . . Secondary . | . . . Self-Inflicted Damage . | . . . Shots . | . . . Rammed . | . . . Targets Rammed 1 | . 1 . Kicked 1 | . 1 . Crushed . | . . . Highest Temperature 12 | . 12 12 Average Temperature 4 | . 3 5 Received Heat Transfer 162 | . 60 102 Siege Activations . | . . . Robots Corrupted . | . . . Combat Hostiles . | . . . Parts Fried 10 | . 4 6 Impact Corruptions 9 | . 4 5 Robots Melted . | . . . Combat Hostiles . | . . . Parts Melted . | . . . Heat Transferred . | . . . Parts Sabotaged . | . . . Parts Stolen . | . . . Parts Stripped . | . . . Power Chain Reactions . | . . . Alert | -11 -10 -10 ------- Run | Yrd Mat Min Peak Influence 225 | 15 225 163 Initial 17 | . 9 17 Average 92 | 5 127 58 Maximum Alert Level 1 | . 1 . Low Security (%) 97 | 100 95 100 Level 1 2 | . 4 . Level 2 . | . . . Level 3 . | . . . Level 4 . | . . . Level 5 . | . . . High Security . | . . . Max Security . | . . . Squads Dispatched 3 | . 3 . Investigation 2 | . 2 . Extermination . | . . . Reinforcement 1 | . 1 . Assault . | . . . Garrison . | . . . Intercept . | . . . Searches Triggered . | . . . Construction Impeded . | . . . Haulers Reinforced . | . . . Active Scanning Responses . | . . . Cargo Convoy Interrupts . | . . . Stealth | -11 -10 -10 --------- Run | Yrd Mat Min Distress Signals 3 | . 1 2 Communications Jammed . | . . . Distress Signals . | . . . Times Spotted 39 | . 33 6 Peak Tracking Total 7 | . 7 4 Tactical Retreats 2 | . 2 . Traps | -11 -10 -10 ------- Run | Yrd Mat Min Traps Triggered 2 | . 2 . Indirectly . | . . . Trap Hack Attempts . | . . . Triggered . | . . . Disarmed . | . . . Reprogrammed . | . . . Reused . | . . . Traps Extracted . | . . . Installed . | . . . Triggered . | . . . Machines | -11 -10 -10 ---------- Run | Yrd Mat Min Machines Disabled 1 | . 1 . Max in Single Turn 1 | . 1 . Machines Repaired . | . . . Machines Dismantled . | . . . Machines Sabotaged . | . . . Overloaded Fab Kills . | . . . Hacking | -11 -10 -10 --------- Run | Yrd Mat Min Machines Accessed 4 | . 4 . Terminals 4 | . 4 . Fabricators . | . . . Repair Stations . | . . . Recycling Units . | . . . Scanalyzers . | . . . Garrison Access . | . . . Total Hacks 7 | . 7 . Successful 5 | . 5 . Failed 2 | . 2 . Catastrophic . | . . . Database Lockouts . | . . . Manual 7 | . 7 . Terminals 7 | . 7 . Fabricators . | . . . Repair Stations . | . . . Recycling Units . | . . . Scanalyzers . | . . . Garrison Access . | . . . Terminal Hacks 2 | . 2 . Robot Analysis 2 | . 2 . Fabricator Hacks . | . . . Repair Station Hacks . | . . . Recycling Unit Hacks . | . . . Scanalyzer . | . . . Garrison Access Hacks . | . . . Unauthorized Hacks 3 | . 3 . Terminals 3 | . 3 . Botnet 3 | . 3 . Fabricators . | . . . Repair Stations . | . . . Recycling Units . | . . . Scanalyzers . | . . . Garrison Access . | . . . Data Cores Recovered . | . . . Used . | . . . Hacking Detections 2 | . 2 . Full Trace Events . | . . . Feedback Events . | . . . Feedback Blocked . | . . . Robot Schematics Acquired . | . . . Robots Built . | . . . Authchips . | . . . Time . | . . . Total Robot Build Rating . | . . . Part Schematics Acquired . | . . . Parts Built . | . . . Authchips . | . . . Time . | . . . Total Part Build Rating . | . . . Parts Repaired . | . . . Time . | . . . Parts Recycled . | . . . Recycled Matter . | . . . Retrieved Matter . | . . . Retrieved Components . | . . . Parts Scanalyzed . | . . . Part Schematics Acquired . | . . . Parts Damaged . | . . . Bothacking | -11 -10 -10 ------------ Run | Yrd Mat Min Used RIF Installer . | . . . Robots Hacked . | . . . Non-combat . | . . . Combat . | . . . Robot Hacks Applied . | . . . Relay Couplers Released . | . . . Fabnet Peak Effective % . | . . . Robots Rewired . | . . . Allies Hacked . | . . . Hacks Repelled . | . . . Allies | -11 -10 -10 -------- Run | Yrd Mat Min Total Allies 4 | . . 4 Largest Group 4 | . . 4 Highest-Rated Group 71 | . . 71 Highest-Rated Ally 31 | . . 31 Total Orders . | . . . Ally Attacks 8 | . . 8 Total Damage 98 | . . 98 Kills 1 | . . 1 Allies Corrupted . | . . . Allies Melted . | . . . Intel | -11 -10 -10 ------- Run | Yrd Mat Min Robot Analysis Total 2 | . 2 . Derelict Logs Recovered . | . . . Drone Launches . | . . . Drone Recoveries . | . . . Exploration | -11 -10 -10 ------------- Run | Yrd Mat Min Turns Passed 2465 | 117 1318 1030 Spaces Moved 1119 | 60 628 431 Core 16 | 16 . . Treads . | . . . Legs 631 | 44 587 . Wheels 472 | . 41 431 Hover . | . . . Flight . | . . . Fastest Speed 50 | 50 110 115 Average Speed 140 | 126 159 115 Slowest Speed 330 | 250 330 125 Overloaded Moves . | . . . Propulsion Burnouts . | . . . Robots Hopped . | . . . Cave-ins Triggered . | . . . Exploration Rate (%) 41 | 5 70 48 Regions Visited 2 Branch Regions 1 Pre-discovered Areas . | . . . Known Exits Taken . | . . . Unknown Exits Taken 2 | 1 1 . Scrap Searched 2 | . . 2 Spaces Dug 1 | . . 1 Terrain Destroyed 11 | . . 11 Melee 1 | . . 1 Projectile . | . . . AOE 10 | . . 10 Terrain Rammed . | . . . Walls Destroyed . | . . . Machines Disabled . | . . . Actions | -11 -10 -10 --------- Run | Yrd Mat Min Total 1830 | 83 835 912 Wait 521 | 2 75 444 Move 1117 | 59 627 431 Hop . | . . . Pick Up 18 | 7 9 2 Fast Attach 7 | 7 . . Attach 2 | . 2 . Detach . | . . . Swap 19 | . 14 5 Drop 13 | . 11 2 Fire 120 | 8 88 24 Melee 12 | . 8 4 Ram . | . . . Kick 1 | . 1 . Crush . | . . . Escape Stasis . | . . . Rewire . | . . . Trap . | . . . Miscellaneous . | . . . Route ------- -11/Scrapyard -10/Materials (discovered 3 exits: [*Mat x2] / [*Min]) -10/Mines (discovered 2 exits: [*Mat] / [*Exi]) History --------- Turn | Location | Event 15 | -11/Scrapyard | Discovered new exit (range 16) 118 | -11/Scrapyard | Entered Materials 223 | -10/Materials | Discovered new exit (range 7) 321 | -10/Materials | Build established: Mutant 348 | -10/Materials | Discovered new exit (range 10) 995 | -10/Materials | Discovered new exit (range 12) 1436 | -10/Materials | Entered Mines 1496 | -10/Mines | Core integrity fell below 50% 1554 | -10/Mines | Discovered new exit (range 5) 1569 | -10/Mines | Assembled infested the area 2230 | -10/Mines | Discovered new exit (range 5) 2260 | -10/Mines | Received a Mining Laser from a helpful Derelict 2272 | -10/Mines | Assisted by bots powering up and referring to "LRC-V3" 2343 | -10/Mines | Build established: Scavenger-Mutant 2446 | -10/Mines | Lost 4 allies 2463 | -10/Mines | Core integrity fell below 20% 2466 | -10/Mines | Destroyed by D-53 Grenadier with Mini Grenade Launcher Last Messages --------------- 02260_ O4-RU0(g): "And why aren't you carrying a mining laser?! Certainly you don't want THEM to uncover you when the ceiling comes crashing down? Here, take my spare." 02263_ O4-RU0(g): "You're apparently new around these parts, I'll cover you." 02272_ Trooper 1a: "Hello LRC-V3. What is your command?" 02272_ Mercenary 1a: "Hello LRC-V3. What is your command?" 02272_ Trooper 1b: "Hello LRC-V3. What is your command?" 02282_ O4-RU0(g): "Mining lasers are a lot more useful than you might think..." 02327_ K-01 Serf collects debris. 02455_ U-05 Engineer lays Concrete. 02458_ U-05 Engineer builds a Wall. 02460_ Aluminum Leg destroyed. 02462_ U-05 Engineer lays Concrete. 02463_ U-05 Engineer builds a Wall. Map ----- +----------------------------------------------------+ | ??## #?????????## ###### #?? #?????????? | | ???#### ##????????## ## #? #?????????? | | ??????## #?######### %## #?????????? | | ???????# #?# % #?????????? | | ???????# #?# #?????????? | | ???????# #?#*########## % ##?###????????? | | ??######% ###%#????????## ## ####?????? | | ??# """ ## #?????????## %= ##????? | | ??# """ ## #??????????# #????? | | ??# """ ## #??????????# #????? | | ??# #??????????## #### ### #?????? | | ??# ####???????????####??## * ##??????????? | | ??# #?????????????????????##%=##??????????? | | ??# #??#####????####???????#= ##?????????? | | ??# #?## ##??## ##??????## | #?????????? | | ??############ ##?# ##?#######% #?????????? | | ????????????# #?# #?# ! #?????????? | | ????????????# #??# #?# ##### #?????????? | | ????????????# #??## ##?# #???# #?????????? | | ?????????????# #??## ##??# #???# = ????????? | | ?????????????## #### ####?#%#???# !% =???????? | | ?????????????## # # ###=#???#### %??????? | | ?????????????# ##[#??????? ?????? | | ?????????????# #%#???????# % ????? | | ????????????# = ##!#???????? # ??? | | ?????????????# d @ u!%##??????? #####?? | | ????????????# %%*#???????? #?????? | | ????????????# [=*%#????????##?????? | | ????????????## # ===##???????????????? | | ?????????????## ####????????????????? | | ??????????????# ####### ##???????????????????? | | ??????????????# ####??# #????????????????????? | | ??????????????# #??## ##????????????????????? | | ?????#????######### #???####?????????????????????? | | ?????#<##?# #????????????????????????????? | | ?????# ## ####### #????????????????????????????? | | ???????# ###### #????????????????????????????? | | ???????### ## ## #????????????????????????????? | | ?????????#### ## #????????????????????????????? | | ????????????# # #???###??????????????????????? | | ???????????## #### #??????????????????????? | | ???????????# ## #??????????????????????? | | ???????????# #??????????????????????? | | ?????####??# ##??????????????????????? | | ????## ##?# ## ##???????????????????????? | | ???## ### ######????????????????????????? | | ???# ###?????????????????????????????? | | ??# | ##???????????????????????????????? | | ??# ##########????????????????????????????????? | | ??######?????????????????????????????????????????? | +----------------------------------------------------+ Best States ------------- Heat Dissipation 25 Energy Generation 10 Energy Capacity 250 Matter Stores 300 Matter Capacity 400 Sight Range 16 Terrain Scan Density 10 Armor Coverage 150 Evasion (%) 55 Item Schematics ----------------- None Robot Schematics ------------------ None Fabricated ------------ Nothing Alien Tech Used ----------------- None Achievements -------------- None Challenges ------------ None Game ------ Seed RemoteSalvageWings Manual? 0 Play Time 00:18:14 Cumulative 53.3 hours Start 2024.03.17 @ 21:47:07 End 2024.03.17 @ 22:01:06 Sessions 1 Manual Loads 0 Difficulty Rogue Special Mode None Game No. 55 Rogue 55 Adventurer 0 Explorer 0 Win Type - Total 0 Types 0/0/0/0/0/0/0/0/0 Lore% 29 Gallery% 35 Achievement% 32 Wizard Run 0 Options --------- Layout 1 ASCII 0 Keyboard 0 Movement Numpad Keybinds 0 Fullscreen 2 Font 24/X11 Map View 50x35 Zoom Use 0% Tactical HUD 1 Map Filters NONE Filters NONE Steam 0 RUN: 07104548-cb2c-48fb-87a4-9b9a1bdf0d90